[Event "Early-Titled-Tuesday-Blitz-January-23-2024"]
[Site "Chess.com"]
[Date "2024.01.23"]
[Round "3"]
[White "Smiechu"]
[Black "sonicdravise"]
[Result "1/2-1/2"]
[WhiteElo "2483"]
[BlackElo "2647"]
[TimeControl "180+1"]
[EndTime "8:30:12 PST"]
[Termination "Game drawn by 50-move rule"]

1. e4 {[%clk 0:03:00.9]} 1... g6 {[%clk 0:02:57.8]} 2. d4 {[%clk 0:03:00.5]}
2... Bg7 {[%clk 0:02:58.5]} 3. Nc3 {[%clk 0:03:01.2]} 3... d6 {[%clk 0:02:58.2]}
4. Be3 {[%clk 0:03:01.3]} 4... a6 {[%clk 0:02:57.8]} 5. f3 {[%clk 0:02:58.8]}
5... b5 {[%clk 0:02:56.7]} 6. h4 {[%clk 0:02:58.4]} 6... h6 {[%clk 0:02:56.3]}
7. Qd2 {[%clk 0:02:57.5]} 7... Nd7 {[%clk 0:02:55.5]} 8. Nh3 {[%clk 0:02:52.7]}
8... Nb6 {[%clk 0:02:50.4]} 9. Nf4 {[%clk 0:02:51]} 9... Nf6 {[%clk 0:02:48.6]}
10. e5 {[%clk 0:02:39.3]} 10... dxe5 {[%clk 0:02:46.3]} 11. dxe5 {[%clk
0:02:39.5]} 11... Qxd2+ {[%clk 0:02:46.4]} 12. Bxd2 {[%clk 0:02:39.6]} 12... Nh5
{[%clk 0:02:33]} 13. e6 {[%clk 0:02:22.6]} 13... Ng3 {[%clk 0:02:05.8]} 14. Rh3
{[%clk 0:02:12.5]} 14... Nxf1 {[%clk 0:02:04.8]} 15. Kxf1 {[%clk 0:02:12.2]}
15... Nc4 {[%clk 0:01:45.1]} 16. Bc1 {[%clk 0:02:08.9]} 16... c6 {[%clk
0:01:40.8]} 17. g4 {[%clk 0:01:46.6]} 17... g5 {[%clk 0:01:32.4]} 18. hxg5
{[%clk 0:01:44.6]} 18... hxg5 {[%clk 0:01:32.2]} 19. Rxh8+ {[%clk 0:01:43.7]}
19... Bxh8 {[%clk 0:01:33.1]} 20. exf7+ {[%clk 0:01:43.4]} 20... Kxf7 {[%clk
0:01:34]} 21. Nfe2 {[%clk 0:01:43]} 21... Kg6 {[%clk 0:01:17.9]} 22. b3 {[%clk
0:01:38.6]} 22... Ne5 {[%clk 0:01:10.3]} 23. Kg2 {[%clk 0:01:15.1]} 23... b4
{[%clk 0:01:09.7]} 24. Ne4 {[%clk 0:01:10.5]} 24... Nxf3 {[%clk 0:01:08.2]} 25.
Kxf3 {[%clk 0:01:04.4]} 25... Bxa1 {[%clk 0:01:06.4]} 26. Bxg5 {[%clk
0:01:04.2]} 26... Bf6 {[%clk 0:00:52.3]} 27. Bd2 {[%clk 0:01:02.9]} 27... a5
{[%clk 0:00:45.7]} 28. Nf4+ {[%clk 0:01:03.1]} 28... Kf7 {[%clk 0:00:41.9]} 29.
g5 {[%clk 0:01:02.3]} 29... Bg7 {[%clk 0:00:34]} 30. g6+ {[%clk 0:00:59.7]}
30... Kg8 {[%clk 0:00:33.5]} 31. Be3 {[%clk 0:00:56.9]} 31... Bf5 {[%clk
0:00:31.6]} 32. Bc5 {[%clk 0:00:40.4]} 32... e5 {[%clk 0:00:29]} 33. Nh5 {[%clk
0:00:29.4]} 33... Bxg6 {[%clk 0:00:28]} 34. Nxg7 {[%clk 0:00:28.5]} 34... Kxg7
{[%clk 0:00:28.9]} 35. Bd6 {[%clk 0:00:23.3]} 35... Re8 {[%clk 0:00:24]} 36. Bc7
{[%clk 0:00:23.2]} 36... Rf8+ {[%clk 0:00:23.9]} 37. Ke3 {[%clk 0:00:23.4]}
37... Bxe4 {[%clk 0:00:19.9]} 38. Kxe4 {[%clk 0:00:23.2]} 38... Rf2 {[%clk
0:00:20.5]} 39. Kxe5 {[%clk 0:00:18.4]} 39... Rxc2 {[%clk 0:00:18.6]} 40. Bxa5
{[%clk 0:00:18.4]} 40... Rxa2 {[%clk 0:00:09.5]} 41. Bxb4 {[%clk 0:00:18.4]}
41... Rb2 {[%clk 0:00:08.2]} 42. Kd6 {[%clk 0:00:18.2]} 42... Rxb3 {[%clk
0:00:08.4]} 43. Bc5 {[%clk 0:00:17.9]} 43... Kf6 {[%clk 0:00:07]} 44. Kxc6
{[%clk 0:00:18]} 44... Ke6 {[%clk 0:00:07.9]} 45. Bb6 {[%clk 0:00:18]} 45...
Rc3+ {[%clk 0:00:08.2]} 46. Kb7 {[%clk 0:00:18.2]} 46... Kd7 {[%clk 0:00:08.5]}
47. Ba7 {[%clk 0:00:17]} 47... Rb3+ {[%clk 0:00:08.4]} 48. Ka8 {[%clk
0:00:17.1]} 48... Kc6 {[%clk 0:00:09.2]} 49. Bb8 {[%clk 0:00:16.4]} 49... Ra3+
{[%clk 0:00:09.6]} 50. Ba7 {[%clk 0:00:16.4]} 50... Rg3 {[%clk 0:00:08.9]} 51.
Bb8 {[%clk 0:00:14.6]} 51... Kb6 {[%clk 0:00:09.1]} 52. Ba7+ {[%clk 0:00:14.5]}
52... Ka6 {[%clk 0:00:09.1]} 53. Bb8 {[%clk 0:00:14.7]} 53... Rh3 {[%clk
0:00:09.2]} 54. Bc7 {[%clk 0:00:13.1]} 54... Rh7 {[%clk 0:00:08.7]} 55. Bb8
{[%clk 0:00:13.2]} 55... Rf7 {[%clk 0:00:08.9]} 56. Bd6 {[%clk 0:00:12.4]} 56...
Rd7 {[%clk 0:00:09]} 57. Bb8 {[%clk 0:00:12.5]} 57... Kb6 {[%clk 0:00:09.1]} 58.
Be5 {[%clk 0:00:11.9]} 58... Kc6 {[%clk 0:00:09.2]} 59. Bf4 {[%clk 0:00:09.8]}
59... Rf7 {[%clk 0:00:08.6]} 60. Bg3 {[%clk 0:00:09.3]} 60... Rf8+ {[%clk
0:00:08.9]} 61. Bb8 {[%clk 0:00:07.8]} 61... Rh8 {[%clk 0:00:06.8]} 62. Ka7
{[%clk 0:00:06.8]} 62... Rh1 {[%clk 0:00:07.1]} 63. Ka8 {[%clk 0:00:06.3]} 63...
Rh7 {[%clk 0:00:05.5]} 64. Bf4 {[%clk 0:00:05.7]} 64... Rb7 {[%clk 0:00:05.5]}
65. Bg3 {[%clk 0:00:05.3]} 65... Rb3 {[%clk 0:00:05.6]} 66. Bb8 {[%clk
0:00:04.7]} 66... Kb6 {[%clk 0:00:05.8]} 67. Ba7+ {[%clk 0:00:04.3]} 67... Ka6
{[%clk 0:00:06.2]} 68. Bb8 {[%clk 0:00:04.6]} 68... Rb7 {[%clk 0:00:06.4]} 69.
Bf4 {[%clk 0:00:03.6]} 69... Rd7 {[%clk 0:00:07.3]} 70. Bb8 {[%clk 0:00:03.5]}
70... Re7 {[%clk 0:00:07.3]} 71. Bd6 {[%clk 0:00:03.6]} 71... Re6 {[%clk
0:00:07.7]} 72. Bb8 {[%clk 0:00:04.5]} 72... Kb6 {[%clk 0:00:08]} 73. Bf4 {[%clk
0:00:04.4]} 73... Kc6 {[%clk 0:00:08.2]} 74. Bb8 {[%clk 0:00:04.9]} 74... Re1
{[%clk 0:00:07.8]} 75. Ba7 {[%clk 0:00:04.6]} 75... Ra1 {[%clk 0:00:08.1]} 76.
Kb8 {[%clk 0:00:05.1]} 76... Kd7 {[%clk 0:00:06.9]} 77. Kb7 {[%clk 0:00:04.8]}
77... Rb1+ {[%clk 0:00:07.1]} 78. Ka8 {[%clk 0:00:05]} 78... Kc6 {[%clk
0:00:06.9]} 79. Bb8 {[%clk 0:00:05.2]} 79... Rf1 {[%clk 0:00:06.9]} 80. Ba7
{[%clk 0:00:04.9]} 80... Rf8+ {[%clk 0:00:06.8]} 81. Bb8 {[%clk 0:00:05.2]}
81... Kd7 {[%clk 0:00:07.7]} 82. Kb7 {[%clk 0:00:04.7]} 82... Rf1 {[%clk
0:00:08.1]} 83. Ka8 {[%clk 0:00:04.7]} 83... Rb1 {[%clk 0:00:08.1]} 84. Ba7
{[%clk 0:00:04.8]} 84... Kc7 {[%clk 0:00:08.1]} 85. Bd4 {[%clk 0:00:04.8]} 85...
Rb4 {[%clk 0:00:07.9]} 86. Be3 {[%clk 0:00:05]} 86... Kc8 {[%clk 0:00:07.6]} 87.
Bf2 {[%clk 0:00:04.8]} 87... Rb3 {[%clk 0:00:07.9]} 88. Bg1 {[%clk 0:00:04.5]}
88... Rb2 {[%clk 0:00:08]} 89. Be3 {[%clk 0:00:04.4]} 89... Re2 {[%clk
0:00:07.7]} 90. Bd4 {[%clk 0:00:04.5]} 90... Re8 {[%clk 0:00:08.1]} 91. Bf2
{[%clk 0:00:04]} 91... Kc7+ {[%clk 0:00:08.3]} 92. Ka7 {[%clk 0:00:04.4]} 92...
Re2 {[%clk 0:00:08.5]} 93. Bg3+ {[%clk 0:00:03.2]} 93... Kc6 {[%clk 0:00:08.9]}
94. Ka8 {[%clk 0:00:02.5]} 1/2-1/2

[Event "Early-Titled-Tuesday-Blitz-January-23-2024"]
[Site "Chess.com"]
[Date "2024.01.23"]
[Round "3"]
[White "Anton_Demchenko"]
[Black "enestnrvrd"]
[Result "1-0"]
[WhiteElo "2949"]
[BlackElo "2687"]
[TimeControl "180+1"]
[EndTime "8:30:30 PST"]
[Termination "Anton_Demchenko won on time"]

1. e4 {[%clk 0:02:59]} 1... c5 {[%clk 0:02:56.4]} 2. Nf3 {[%clk 0:02:59.4]} 2...
d6 {[%clk 0:02:56.7]} 3. d4 {[%clk 0:02:59.6]} 3... cxd4 {[%clk 0:02:57.6]} 4.
Qxd4 {[%clk 0:03:00.5]} 4... Nc6 {[%clk 0:02:55.1]} 5. Bb5 {[%clk 0:03:00.5]}
5... Bd7 {[%clk 0:02:52.5]} 6. Qd3 {[%clk 0:02:59.6]} 6... Nf6 {[%clk
0:02:51.9]} 7. Bg5 {[%clk 0:02:59.7]} 7... e6 {[%clk 0:02:44.1]} 8. Nc3 {[%clk
0:02:59.3]} 8... Be7 {[%clk 0:02:44.1]} 9. O-O-O {[%clk 0:02:59]} 9... Qa5
{[%clk 0:02:39.7]} 10. e5 {[%clk 0:02:26.6]} 10... Nb4 {[%clk 0:02:12]} 11. Qc4
{[%clk 0:01:58.3]} 11... Nfd5 {[%clk 0:00:56.3]} 12. Bxd7+ {[%clk 0:01:51.6]}
12... Kxd7 {[%clk 0:00:55.2]} 13. Nxd5 {[%clk 0:01:40.1]} 13... Nxd5 {[%clk
0:00:22.2]} 14. Bxe7 {[%clk 0:01:34.4]} 14... Rhc8 {[%clk 0:00:22]} 15. Qb3
{[%clk 0:01:27]} 15... Kxe7 {[%clk 0:00:21.9]} 16. exd6+ {[%clk 0:01:18.2]}
16... Kxd6 {[%clk 0:00:21.5]} 17. Rhe1 {[%clk 0:01:13.7]} 17... Rc7 {[%clk
0:00:11.4]} 18. Kb1 {[%clk 0:01:04.9]} 18... Qc5 {[%clk 0:00:06.4]} 19. Nd4
{[%clk 0:00:50.7]} 19... Ke7 {[%clk 0:00:06]} 20. Nb5 {[%clk 0:00:51.4]} 20...
Rd7 {[%clk 0:00:05.7]} 21. c4 {[%clk 0:00:43.7]} 21... Nf6 {[%clk 0:00:05.8]}
22. Rxd7+ {[%clk 0:00:40]} 22... Nxd7 {[%clk 0:00:06.7]} 23. Qg3 {[%clk
0:00:36.6]} 23... Kf8 {[%clk 0:00:05.9]} 24. Rd1 {[%clk 0:00:25.5]} 24... Nf6
{[%clk 0:00:06.1]} 25. Qd6+ {[%clk 0:00:22.7]} 25... Qxd6 {[%clk 0:00:06.1]} 26.
Nxd6 {[%clk 0:00:23.6]} 26... b6 {[%clk 0:00:06.3]} 27. Kc2 {[%clk 0:00:23.8]}
27... Ke7 {[%clk 0:00:06.6]} 28. Nb5 {[%clk 0:00:22.8]} 28... a6 {[%clk
0:00:06.3]} 29. Nc3 {[%clk 0:00:22.7]} 29... Rc8 {[%clk 0:00:06.5]} 30. b3
{[%clk 0:00:22.1]} 30... b5 {[%clk 0:00:07]} 31. Rd4 {[%clk 0:00:20.5]} 31...
bxc4 {[%clk 0:00:06.6]} 32. Rxc4 {[%clk 0:00:20.9]} 32... Rxc4 {[%clk
0:00:05.9]} 33. bxc4 {[%clk 0:00:21.8]} 33... Kd6 {[%clk 0:00:06.4]} 34. Kd3
{[%clk 0:00:22]} 34... Ng4 {[%clk 0:00:06.4]} 35. Ne4+ {[%clk 0:00:19.6]} 35...
Ke5 {[%clk 0:00:04.9]} 36. h3 {[%clk 0:00:18.3]} 36... Nh6 {[%clk 0:00:05.2]}
37. Nc5 {[%clk 0:00:17.1]} 37... a5 {[%clk 0:00:04.5]} 38. a4 {[%clk 0:00:16.7]}
38... Nf5 {[%clk 0:00:02.7]} 39. Nb3 {[%clk 0:00:16.2]} 39... Nh4 {[%clk
0:00:02.9]} 40. g3 {[%clk 0:00:16.8]} 40... Nf3 {[%clk 0:00:03.3]} 41. Nxa5
{[%clk 0:00:16.9]} 41... Kd6 {[%clk 0:00:02.3]} 42. Nb3 {[%clk 0:00:17.1]} 42...
Ne5+ {[%clk 0:00:02.5]} 43. Kc3 {[%clk 0:00:17.2]} 43... Kc6 {[%clk 0:00:03.3]}
44. a5 {[%clk 0:00:16.9]} 44... Nd7 {[%clk 0:00:03]} 45. Kb4 {[%clk 0:00:14.2]}
45... e5 {[%clk 0:00:03.1]} 46. c5 {[%clk 0:00:09.7]} 46... f5 {[%clk
0:00:03.3]} 47. a6 {[%clk 0:00:10.2]} 47... Kc7 {[%clk 0:00:02.3]} 48. Kb5
{[%clk 0:00:09.9]} 48... Kb8 {[%clk 0:00:01.5]} 49. Kc6 {[%clk 0:00:09.2]} 49...
Nf6 {[%clk 0:00:01.8]} 50. Na5 {[%clk 0:00:07]} 50... Ka7 {[%clk 0:00:02.4]} 51.
Kb5 {[%clk 0:00:07.7]} 51... Nd5 {[%clk 0:00:02.8]} 52. Nc6+ {[%clk 0:00:08.4]}
52... Ka8 {[%clk 0:00:03.1]} 53. Nxe5 {[%clk 0:00:08.6]} 53... Nc7+ {[%clk
0:00:03]} 54. Kb6 {[%clk 0:00:08.7]} 54... Nd5+ {[%clk 0:00:03.7]} 55. Kc6
{[%clk 0:00:09.5]} 55... Nb4+ {[%clk 0:00:04.2]} 56. Kb5 {[%clk 0:00:10.3]}
56... Nd5 {[%clk 0:00:04.9]} 57. c6 {[%clk 0:00:08]} 57... Ka7 {[%clk
0:00:04.4]} 58. Kc5 {[%clk 0:00:08.4]} 58... Nc7 {[%clk 0:00:04.6]} 59. Kd6
{[%clk 0:00:09.2]} 59... Nxa6 {[%clk 0:00:03.7]} 60. Ke6 {[%clk 0:00:08.4]}
60... Kb6 {[%clk 0:00:03.6]} 61. Kxf5 {[%clk 0:00:08.6]} 61... Nc5 {[%clk
0:00:04.2]} 62. h4 {[%clk 0:00:08.5]} 62... Kc7 {[%clk 0:00:04]} 63. h5 {[%clk
0:00:08.4]} 63... Kd6 {[%clk 0:00:04.6]} 64. g4 {[%clk 0:00:08.1]} 64... Nb3
{[%clk 0:00:03.8]} 65. Ke4 {[%clk 0:00:07.8]} 65... Nd2+ {[%clk 0:00:04]} 66.
Kf5 {[%clk 0:00:08.1]} 66... Nb3 {[%clk 0:00:04]} 67. f4 {[%clk 0:00:07.9]}
67... Nd4+ {[%clk 0:00:03.3]} 68. Ke4 {[%clk 0:00:08.6]} 68... Ne2 {[%clk
0:00:03.8]} 69. Ke3 {[%clk 0:00:05.6]} 69... Nc3 {[%clk 0:00:03.5]} 70. Kf3
{[%clk 0:00:06]} 70... Nd5 {[%clk 0:00:03.9]} 71. g5 {[%clk 0:00:06]} 71... Ke6
{[%clk 0:00:04.1]} 72. Ke4 {[%clk 0:00:05.2]} 72... Nc3+ {[%clk 0:00:04.2]} 73.
Kd4 {[%clk 0:00:05.1]} 73... Ne2+ {[%clk 0:00:04.1]} 74. Ke3 {[%clk 0:00:05.6]}
74... Nc3 {[%clk 0:00:04.7]} 75. Kf3 {[%clk 0:00:05.8]} 75... Nd5 {[%clk
0:00:03.7]} 76. Kg4 {[%clk 0:00:06.3]} 76... Ne3+ {[%clk 0:00:03.8]} 77. Kh3
{[%clk 0:00:05.8]} 77... Nd5 {[%clk 0:00:03.9]} 78. Kg3 {[%clk 0:00:06.4]} 78...
Ne3 {[%clk 0:00:04.2]} 79. c7 {[%clk 0:00:06.5]} 79... Nf5+ {[%clk 0:00:04.4]}
80. Kg4 {[%clk 0:00:07.1]} 80... Nd6 {[%clk 0:00:04.9]} 81. Nc4 {[%clk
0:00:06.6]} 81... Nc8 {[%clk 0:00:03.9]} 82. f5+ {[%clk 0:00:07.3]} 82... Kd7
{[%clk 0:00:04.4]} 83. g6 {[%clk 0:00:06.9]} 83... hxg6 {[%clk 0:00:04]} 84.
fxg6 {[%clk 0:00:07.2]} 84... Kxc7 {[%clk 0:00:04.4]} 85. Kf5 {[%clk 0:00:07.2]}
85... Kd7 {[%clk 0:00:03.5]} 86. h6 {[%clk 0:00:05.6]} 86... gxh6 {[%clk
0:00:03.1]} 87. Kf6 {[%clk 0:00:06.3]} 87... Ne7 {[%clk 0:00:02.7]} 88. g7
{[%clk 0:00:07.1]} 88... Ke8 {[%clk 0:00:02.3]} 89. Ne5 {[%clk 0:00:07.2]} 89...
Ng8+ {[%clk 0:00:02.7]} 90. Kg6 {[%clk 0:00:07.4]} 90... Ke7 {[%clk 0:00:02.9]}
91. Ng4 {[%clk 0:00:06.4]} 91... h5 {[%clk 0:00:02.8]} 92. Nh6 {[%clk
0:00:06.6]} 92... Nf6 {[%clk 0:00:02]} 93. Nf5+ {[%clk 0:00:06.6]} 93... Ke6
{[%clk 0:00:02.6]} 94. Nh4 {[%clk 0:00:02.8]} 94... Ke7 {[%clk 0:00:01.9]} 95.
Kg5 {[%clk 0:00:03.4]} 95... Kf7 {[%clk 0:00:02]} 96. Kh6 {[%clk 0:00:04.2]}
96... Ng8+ {[%clk 0:00:02.1]} 97. Kh7 {[%clk 0:00:05]} 97... Nf6+ {[%clk
0:00:02.7]} 98. Kh8 {[%clk 0:00:05.8]} 98... Ng8 {[%clk 0:00:02.9]} 99. Nf5
{[%clk 0:00:06.6]} 99... Nf6 {[%clk 0:00:02.8]} 100. Nd6+ {[%clk 0:00:06.2]}
100... Kg6 {[%clk 0:00:02.9]} 101. Ne4 {[%clk 0:00:06.9]} 1-0

[Event "Early-Titled-Tuesday-Blitz-January-23-2024"]
[Site "Chess.com"]
[Date "2024.01.23"]
[Round "3"]
[White "rasmussvane"]
[Black "Korchmar_Vasiliy"]
[Result "1/2-1/2"]
[WhiteElo "2992"]
[BlackElo "2724"]
[TimeControl "180+1"]
[EndTime "8:30:50 PST"]
[Termination "Game drawn by agreement"]

1. Nf3 {[%clk 0:03:00.9]} 1... Nf6 {[%clk 0:02:58.6]} 2. g3 {[%clk 0:02:59.9]}
2... g6 {[%clk 0:02:59]} 3. Bg2 {[%clk 0:02:59.8]} 3... Bg7 {[%clk 0:02:59.8]}
4. O-O {[%clk 0:02:59.6]} 4... O-O {[%clk 0:03:00.5]} 5. d4 {[%clk 0:03:00.1]}
5... d6 {[%clk 0:03:00.9]} 6. Re1 {[%clk 0:03:00.1]} 6... Bf5 {[%clk 0:02:37.4]}
7. Nbd2 {[%clk 0:02:55.1]} 7... d5 {[%clk 0:02:33.5]} 8. c3 {[%clk 0:02:52.3]}
8... c6 {[%clk 0:02:26.6]} 9. Nh4 {[%clk 0:02:52]} 9... Be6 {[%clk 0:02:24.8]}
10. e4 {[%clk 0:02:43.9]} 10... dxe4 {[%clk 0:02:24.7]} 11. Nxe4 {[%clk
0:02:44.8]} 11... Nxe4 {[%clk 0:02:25]} 12. Bxe4 {[%clk 0:02:45.7]} 12... Nd7
{[%clk 0:02:22.9]} 13. Bg2 {[%clk 0:02:39.7]} 13... Nb6 {[%clk 0:02:18]} 14. Bf4
{[%clk 0:02:28.8]} 14... Qd7 {[%clk 0:02:05.1]} 15. Nf3 {[%clk 0:02:25.6]} 15...
Bg4 {[%clk 0:01:58.4]} 16. Qb3 {[%clk 0:02:21.3]} 16... Be6 {[%clk 0:01:54]} 17.
Qc2 {[%clk 0:02:17.6]} 17... Bf5 {[%clk 0:01:51.5]} 18. Qe2 {[%clk 0:02:17.2]}
18... Rae8 {[%clk 0:01:34.8]} 19. Ne5 {[%clk 0:02:15.3]} 19... Qc8 {[%clk
0:01:34.7]} 20. c4 {[%clk 0:02:06.6]} 20... Bh3 {[%clk 0:01:27.7]} 21. Bh1
{[%clk 0:01:59.9]} 21... Nd7 {[%clk 0:01:27.2]} 22. Rad1 {[%clk 0:01:30.6]}
22... Nxe5 {[%clk 0:01:27]} 23. Bxe5 {[%clk 0:01:30.5]} 23... Bg4 {[%clk
0:01:25.7]} 24. Bf3 {[%clk 0:01:16.2]} 24... Bxf3 {[%clk 0:01:25.5]} 25. Qxf3
{[%clk 0:01:17.1]} 25... Qf5 {[%clk 0:01:13.5]} 26. Qb3 {[%clk 0:01:12.8]} 26...
Qd7 {[%clk 0:00:59.5]} 27. Bxg7 {[%clk 0:01:04]} 27... Kxg7 {[%clk 0:01:00.4]}
28. d5 {[%clk 0:01:00.7]} 28... cxd5 {[%clk 0:00:57.8]} 29. Rxd5 {[%clk
0:01:01.6]} 29... Qc6 {[%clk 0:00:57.1]} 30. Red1 {[%clk 0:01:00.7]} 30... Rc8
{[%clk 0:00:49.6]} 31. Qc3+ {[%clk 0:00:49.7]} 31... Qf6 {[%clk 0:00:43.1]} 32.
Qb4 {[%clk 0:00:44.4]} 32... Rc7 {[%clk 0:00:39.5]} 33. b3 {[%clk 0:00:42.6]}
33... Rfc8 {[%clk 0:00:39.3]} 34. h4 {[%clk 0:00:41.8]} 34... h5 {[%clk
0:00:39]} 35. Qd2 {[%clk 0:00:40.1]} 35... Rc6 {[%clk 0:00:36.5]} 36. Qe3 {[%clk
0:00:39.8]} 36... a6 {[%clk 0:00:34]} 37. a4 {[%clk 0:00:35.2]} 37... Re6 {[%clk
0:00:27.9]} 38. Qd2 {[%clk 0:00:34.4]} 38... Rcc6 {[%clk 0:00:23.8]} 39. c5
{[%clk 0:00:17.3]} 39... Re5 {[%clk 0:00:17.6]} 40. b4 {[%clk 0:00:16.1]} 40...
a5 {[%clk 0:00:13.9]} 41. bxa5 {[%clk 0:00:07.7]} 41... Rxc5 {[%clk 0:00:12.9]}
42. Rxc5 {[%clk 0:00:08.6]} 42... Rxc5 {[%clk 0:00:13.3]} 43. Qb4 {[%clk
0:00:08.6]} 43... Rc2 {[%clk 0:00:11]} 44. Rf1 {[%clk 0:00:09.1]} 44... Rc7
{[%clk 0:00:07.7]} 45. Rb1 {[%clk 0:00:06.7]} 45... Qe5 {[%clk 0:00:03.4]} 46.
Qb6 {[%clk 0:00:05.7]} 46... Rd7 {[%clk 0:00:03.5]} 47. Qb4 {[%clk 0:00:04.6]}
47... Qf6 {[%clk 0:00:03.5]} 48. Qc5 {[%clk 0:00:04.5]} 48... Kh7 {[%clk
0:00:02.9]} 49. Kg2 {[%clk 0:00:04.3]} 49... Kg7 {[%clk 0:00:02.9]} 50. Rb4
{[%clk 0:00:04.4]} 50... Qe6 {[%clk 0:00:03.1]} 51. Rf4 {[%clk 0:00:03]} 51...
Rd6 {[%clk 0:00:01.8]} 52. Qb4 {[%clk 0:00:03]} 52... Rd7 {[%clk 0:00:01.6]} 53.
Qb2+ {[%clk 0:00:03]} 53... f6 {[%clk 0:00:01.4]} 54. Qc3 {[%clk 0:00:02.5]}
54... Qd5+ {[%clk 0:00:01.9]} 55. Qf3 {[%clk 0:00:02.4]} 55... Qxa5 {[%clk
0:00:01.9]} 56. Re4 {[%clk 0:00:02.9]} 56... Qd5 {[%clk 0:00:01.9]} 57. Kg1
{[%clk 0:00:02.5]} 57... Qd1+ {[%clk 0:00:01.8]} 58. Kg2 {[%clk 0:00:02.3]}
58... Qxf3+ {[%clk 0:00:01.8]} 59. Kxf3 {[%clk 0:00:03.2]} 59... Kf7 {[%clk
0:00:02.3]} 60. Rb4 {[%clk 0:00:03.6]} 60... Rc7 {[%clk 0:00:02.8]} 61. Rb6
{[%clk 0:00:03.6]} 61... Rd7 {[%clk 0:00:03.1]} 62. a5 {[%clk 0:00:04.1]} 62...
Rc7 {[%clk 0:00:03.3]} 63. a6 {[%clk 0:00:04.6]} 63... bxa6 {[%clk 0:00:03.5]}
64. Rxa6 {[%clk 0:00:05.5]} 64... Rc3+ {[%clk 0:00:04]} 65. Kg2 {[%clk 0:00:06]}
65... Rc4 {[%clk 0:00:04.6]} 66. Rb6 {[%clk 0:00:06.1]} 66... Rd4 {[%clk
0:00:04.9]} 67. Rc6 {[%clk 0:00:06.5]} 67... Rd6 {[%clk 0:00:05.4]} 68. Rc5
{[%clk 0:00:06.8]} 68... Re6 {[%clk 0:00:05.9]} 69. Rd5 {[%clk 0:00:07.2]} 69...
Ra6 {[%clk 0:00:06.3]} 70. Rb5 {[%clk 0:00:07.5]} 70... Ra7 {[%clk 0:00:06.1]}
71. Rd5 {[%clk 0:00:07.8]} 71... Rc7 {[%clk 0:00:06.5]} 72. Rb5 {[%clk 0:00:08]}
72... Kg7 {[%clk 0:00:06.9]} 73. Ra5 {[%clk 0:00:08.3]} 73... e5 {[%clk
0:00:07]} 74. Ra6 {[%clk 0:00:08.7]} 74... Re7 {[%clk 0:00:06.9]} 75. Rd6 {[%clk
0:00:08.9]} 75... Kf7 {[%clk 0:00:07.4]} 76. Rc6 {[%clk 0:00:09.1]} 76... Re6
{[%clk 0:00:08]} 77. Rc7+ {[%clk 0:00:09.3]} 77... Re7 {[%clk 0:00:08.4]} 78.
Rc6 {[%clk 0:00:09.9]} 78... e4 {[%clk 0:00:07.4]} 79. Rb6 {[%clk 0:00:09.7]}
79... Re6 {[%clk 0:00:07.8]} 80. Rb7+ {[%clk 0:00:09.8]} 80... Re7 {[%clk
0:00:08.4]} 81. Rb6 {[%clk 0:00:10.2]} 81... e3 {[%clk 0:00:07.6]} 82. fxe3
{[%clk 0:00:10.4]} 82... Rxe3 {[%clk 0:00:08.5]} 83. Kf2 {[%clk 0:00:11]} 83...
Re6 {[%clk 0:00:08.6]} 84. Rb7+ {[%clk 0:00:11.1]} 84... Re7 {[%clk 0:00:09.1]}
85. Rb6 {[%clk 0:00:11.7]} 85... Kg7 {[%clk 0:00:09.2]} 86. Kf3 {[%clk
0:00:11.8]} 86... Rf7 {[%clk 0:00:09.8]} 87. Kf4 {[%clk 0:00:11.8]} 87... Ra7
{[%clk 0:00:10.3]} 88. Kf3 {[%clk 0:00:11.7]} 88... Ra3+ {[%clk 0:00:10.5]} 89.
Kf2 {[%clk 0:00:11.6]} 89... Rd3 {[%clk 0:00:09.5]} 90. Kg2 {[%clk 0:00:12]}
90... Kf7 {[%clk 0:00:09.5]} 91. Kf2 {[%clk 0:00:12.4]} 91... Rd5 {[%clk
0:00:09.2]} 92. Kf3 {[%clk 0:00:12.7]} 92... Ke7 {[%clk 0:00:09.3]} 93. Kf2
{[%clk 0:00:13]} 93... Rd6 {[%clk 0:00:09.2]} 94. Rb7+ {[%clk 0:00:13.1]} 94...
Ke6 {[%clk 0:00:09.8]} 95. Rb5 {[%clk 0:00:13.2]} 95... Rd5 {[%clk 0:00:10]} 96.
Rb6+ {[%clk 0:00:13.2]} 96... Kf5 {[%clk 0:00:10.5]} 97. Kf3 {[%clk 0:00:12.1]}
97... Ra5 {[%clk 0:00:10.1]} 98. Rc6 {[%clk 0:00:10.8]} 98... Ra3+ {[%clk
0:00:10]} 99. Kg2 {[%clk 0:00:11.4]} 99... Ra4 {[%clk 0:00:09.4]} 100. Kf3
{[%clk 0:00:11.6]} 100... Ra3+ {[%clk 0:00:09.4]} 101. Kg2 {[%clk 0:00:12.1]}
101... Re3 {[%clk 0:00:05.7]} 102. Kf2 {[%clk 0:00:11.9]} 102... Re4 {[%clk
0:00:05.7]} 103. Kf3 {[%clk 0:00:11.8]} 103... Re5 {[%clk 0:00:06.4]} 104. Kg2
{[%clk 0:00:10.1]} 104... Rd5 {[%clk 0:00:06]} 105. Kf3 {[%clk 0:00:10]} 105...
g5 {[%clk 0:00:06.6]} 106. hxg5 {[%clk 0:00:09.7]} 106... fxg5 {[%clk
0:00:07.5]} 107. Rc4 {[%clk 0:00:08.4]} 107... g4+ {[%clk 0:00:06.9]} 108. Kg2
{[%clk 0:00:08.1]} 108... Rd2+ {[%clk 0:00:07.3]} 109. Kg1 {[%clk 0:00:08.7]}
109... Ke5 {[%clk 0:00:05.2]} 110. Rc5+ {[%clk 0:00:06.1]} 110... Ke4 {[%clk
0:00:04.6]} 111. Rxh5 {[%clk 0:00:05.5]} 111... Kf3 {[%clk 0:00:05.1]} 112. Rf5+
{[%clk 0:00:05.8]} 112... Kxg3 {[%clk 0:00:05.3]} 113. Rf1 {[%clk 0:00:06]}
113... Rg2+ {[%clk 0:00:05.2]} 114. Kh1 {[%clk 0:00:05.8]} 114... Rh2+ {[%clk
0:00:05.4]} 115. Kg1 {[%clk 0:00:06.2]} 115... Rb2 {[%clk 0:00:05.3]} 116. Rc1
{[%clk 0:00:06.2]} 1/2-1/2

[Event "Early-Titled-Tuesday-Blitz-January-23-2024"]
[Site "Chess.com"]
[Date "2024.01.23"]
[Round "4"]
[White "Iball95"]
[Black "Chessdreamer2020"]
[Result "1-0"]
[WhiteElo "2769"]
[BlackElo "2544"]
[TimeControl "180+1"]
[EndTime "8:32:53 PST"]
[Termination "Iball95 won by checkmate"]

1. e4 {[%clk 0:03:00.9]} 1... d6 {[%clk 0:02:59.8]} 2. d4 {[%clk 0:03:01.5]}
2... Nf6 {[%clk 0:03:00.7]} 3. Nc3 {[%clk 0:03:01.8]} 3... c6 {[%clk 0:03:01.4]}
4. Nf3 {[%clk 0:03:00]} 4... Bg4 {[%clk 0:03:01]} 5. h3 {[%clk 0:03:00.3]} 5...
Bh5 {[%clk 0:03:00.7]} 6. g4 {[%clk 0:03:00.9]} 6... Bg6 {[%clk 0:03:00.8]} 7.
Qe2 {[%clk 0:03:01.5]} 7... e6 {[%clk 0:02:59.1]} 8. h4 {[%clk 0:03:01.7]} 8...
h6 {[%clk 0:02:55.2]} 9. h5 {[%clk 0:03:00.5]} 9... Bh7 {[%clk 0:02:55.2]} 10.
g5 {[%clk 0:03:01.1]} 10... hxg5 {[%clk 0:02:55.3]} 11. Nxg5 {[%clk 0:03:01.8]}
11... d5 {[%clk 0:02:54.6]} 12. e5 {[%clk 0:02:39.7]} 12... Nfd7 {[%clk
0:02:51]} 13. Nxh7 {[%clk 0:02:39.7]} 13... Rxh7 {[%clk 0:02:50.7]} 14. Qg4
{[%clk 0:02:40.3]} 14... c5 {[%clk 0:02:45.9]} 15. Bd3 {[%clk 0:02:40.3]} 15...
Rh8 {[%clk 0:02:45.5]} 16. Bg5 {[%clk 0:02:34.4]} 16... Qa5 {[%clk 0:02:44]} 17.
Qxe6+ {[%clk 0:02:32.4]} 17... fxe6 {[%clk 0:02:42.3]} 18. Bg6# {[%clk
0:02:31.8]} 1-0